bitfinex-derivatives/quotes_BTCF0:USTF0_20250929
["timestamp","ask_amount","ask_price","bid_price","bid_amount"]
[1759156715681,0.4810247,113970.0,113960.0,1.2901313]
[1759156716286,0.13157561,113970.0,113960.0,1.2901313]
[1759156716480,0.4810247,113970.0,113960.0,0.4709313]
[1759156716680,0.4810247,113970.0,113960.0,1.2898913]
[1759156717183,0.12657561,113970.0,113960.0,1.2898913]
[1759156717488,0.4820247,113970.0,113960.0,1.63934039]
[1759156717687,0.4820247,113970.0,113960.0,1.2898913]
[1759156717688,0.4760247,113970.0,113960.0,1.2898913]
[1759156717889,0.4800247,113970.0,113960.0,1.63934039]
[1759156718788,0.4800247,113970.0,113960.0,1.64860039]
[1759156719483,0.09515561,113970.0,113960.0,1.99804948]
[1759156719881,0.4446047,113970.0,113960.0,1.64860039]
[1759156720083,0.4438047,113970.0,113960.0,1.64860039]
[1759156720282,0.4442047,113970.0,113960.0,1.64860039]
[1759156720488,0.11631561,113970.0,113960.0,1.64824039]
[1759156720690,0.4796247,113970.0,113960.0,0.4709313]
[1759156720885,0.4796247,113970.0,113960.0,1.63894039]
[1759156721085,0.11631561,113970.0,113960.0,1.64820039]
[1759156721288,0.4657647,113970.0,113960.0,1.64820039]
[1759156722490,0.11631561,113970.0,113960.0,1.64820039]
[1759156722892,0.4657647,113970.0,113960.0,1.64820039]
[1759156723491,0.4657647,113970.0,113960.0,1.2987513]
[1759156723689,0.4657647,113970.0,113960.0,1.64820039]
[1759156723893,0.4657647,113970.0,113960.0,0.82964039]
[1759156724084,0.4657647,113970.0,113960.0,1.64764039]
[1759156724691,0.4442047,113970.0,113960.0,1.64764039]
[1759156724893,0.42395878,113970.0,113960.0,1.64764039]
[1759156725394,0.09474466,113970.0,113960.0,1.64764039]
[1759156725596,0.44419375,113970.0,113960.0,1.64764039]
[1759156725894,0.46575375,113970.0,113960.0,0.82038039]
[1759156726094,0.46575375,113970.0,113960.0,1.63806039]
[1759156726289,0.47961375,113970.0,113960.0,0.82038039]
[1759156726488,0.47961375,113970.0,113960.0,1.63802039]
[1759156728596,0.47961375,113970.0,113960.0,1.2885713]
[1759156728895,0.47961375,113970.0,113960.0,1.63746039]
[1759156729987,0.13016466,113970.0,113960.0,1.63746039]
[1759156730196,0.47961375,113970.0,113960.0,1.63746039]
[1759156730396,0.13016466,113970.0,113960.0,1.63746039]
[1759156730695,0.47961375,113970.0,113960.0,1.63746039]
[1759156731091,0.13016466,113970.0,113960.0,1.63746039]
[1759156731293,0.47961375,113970.0,113960.0,1.63746039]
[1759156731795,0.13016466,113970.0,113960.0,1.63746039]
[1759156731995,0.47961375,113970.0,113960.0,1.2880113]
[1759156732195,0.47961375,113970.0,113960.0,0.4709313]
[1759156732400,0.47961375,113970.0,113960.0,1.63730039]
[1759156733995,0.47961375,113970.0,113960.0,0.82038039]
[1759156734199,0.47961375,113970.0,113960.0,1.63802039]
[1759156734593,0.47961375,113970.0,113960.0,1.63790039]
[1759156734896,0.47961375,113970.0,113960.0,0.82038039]
[1759156735099,0.47961375,113970.0,113960.0,1.63790039]
[1759156735297,0.45937878,113970.0,113960.0,0.51790004]
[1759156735490,0.45937878,113970.0,113960.0,1.33534004]
[1759156736191,0.45937878,113970.0,113960.0,1.68478913]
[1759156737692,0.45937878,113970.0,113960.0,1.33534004]
[1759156737998,0.45937878,113970.0,113960.0,0.51790004]
[1759156738198,0.45937878,113970.0,113960.0,1.33518004]
[1759156738498,0.45937878,113970.0,113960.0,0.51790004]
[1759156739199,0.45937878,113970.0,113960.0,1.33506004]
[1759156739393,0.45937878,113970.0,113960.0,0.51790004]
[1759156739698,0.45937878,113970.0,113960.0,1.33510004]
[1759156740199,0.10992969,113970.0,113960.0,1.33510004]
[1759156740498,0.45937878,113970.0,113960.0,1.33510004]
[1759156741693,0.45937878,113970.0,113960.0,1.68454913]
[1759156741895,0.45937878,113970.0,113960.0,1.33510004]
[1759156743499,0.10992969,113970.0,113960.0,1.33510004]
[1759156743699,0.45937878,113970.0,113960.0,1.33510004]
[1759156743903,0.45937878,113970.0,113960.0,1.68454913]
[1759156744203,0.07450969,113970.0,113960.0,1.64656889]
[1759156744501,0.004,113970.0,113960.0,1.64656889]
[1759156744696,0.004,113970.0,113960.0,2.04656889]
[1759156744902,0.0044,113970.0,113960.0,2.04656889]
[1759156745302,0.0004,113970.0,113960.0,2.04656889]
[1759156745896,0.0004,113970.0,113960.0,1.6973913]
[1759156747098,0.0004,113970.0,113960.0,1.7060102]
[1759156747301,0.0004,113970.0,113960.0,1.75266548]
[1759156748604,0.0004,113970.0,113960.0,2.10184307]
[1759156749597,0.0004,113970.0,113960.0,1.75266548]
[1759156749799,0.0004,113970.0,113960.0,2.10184307]
[1759156750604,0.08264961,113980.0,113960.0,2.05518779]
[1759156750798,0.10578961,113980.0,113970.0,0.51692321]
[1759156750997,0.08344961,113980.0,113970.0,0.52326321]
[1759156751698,0.10498961,113980.0,113970.0,0.8724408]
[1759156751899,0.08304961,113980.0,113970.0,0.8724408]
[1759156752205,0.08564961,113980.0,113970.0,0.8724408]
[1759156752405,0.08604961,113980.0,113970.0,0.8724408]
[1759156752601,0.10798961,113980.0,113970.0,0.8724408]
[1759156752803,0.12109961,113980.0,113970.0,1.33380321]
[1759156753400,0.11809961,113980.0,113970.0,1.33380321]
[1759156753597,0.04117384,113980.0,113970.0,1.6893208]
[1759156753800,0.01883384,113980.0,113970.0,1.6893208]
[1759156754000,0.01843384,113980.0,113970.0,1.6893208]
[1759156754402,0.01883384,113980.0,113970.0,1.6893208]
[1759156754703,0.01883384,113980.0,113970.0,1.6892808]
[1759156755201,0.01283384,113980.0,113970.0,1.6892808]
[1759156755409,0.01283384,113980.0,113970.0,0.8724408]
[1759156755609,0.01283384,113980.0,113970.0,1.6892808]
[1759156756311,0.01283384,113980.0,113970.0,0.52326321]
[1759156756512,0.01283384,113980.0,113970.0,1.6892408]
[1759156757815,0.01283384,113980.0,113970.0,0.8724408]
[1759156758016,0.01283384,113980.0,113970.0,1.6892408]
[1759156758411,0.01283384,113980.0,113970.0,1.34006321]
[1759156758714,0.01283384,113980.0,113970.0,1.6892408]
[1759156760117,0.01283384,113980.0,113970.0,1.34006321]
[1759156760308,0.01283384,113980.0,113970.0,1.6892408]
[1759156760915,0.01283384,113980.0,113970.0,0.8724408]
[1759156761120,0.01283384,113980.0,113970.0,1.6892008]
[1759156761619,0.01283384,113980.0,113970.0,0.8724408]
[1759156761818,0.01283384,113980.0,113970.0,1.6891608]
[1759156763720,0.01283384,113980.0,113970.0,0.52326321]
[1759156764024,0.03482384,113980.0,113970.0,1.33360321]
[1759156764219,0.04867384,113980.0,113970.0,1.33360321]
[1759156765618,0.04867384,113980.0,113970.0,0.51692321]
[1759156765824,0.04867384,113980.0,113970.0,1.33360321]
[1759156766322,0.04867384,113980.0,113970.0,0.51692321]
[1759156766623,0.04867384,113980.0,113970.0,1.33360321]
[1759156768919,0.04867384,113980.0,113970.0,0.51692321]
[1759156769124,0.04867384,113980.0,113970.0,1.33356321]
[1759156770224,0.03482384,113980.0,113970.0,1.33990321]
[1759156770419,0.03482384,113980.0,113970.0,0.4702829]
[1759156770727,0.04867384,113980.0,113970.0,1.2868829]
[1759156771317,0.03482384,113980.0,113970.0,1.2868829]
[1759156771527,0.03482384,113980.0,113970.0,1.2932229]
[1759156771823,4e-08,113980.0,113970.0,1.64240049]
[1759156772024,0.08532511,113990.0,113980.0,0.1170252]
[1759156772228,0.10811511,113990.0,113980.0,0.52455155]
[1759156772423,0.07226511,113990.0,113980.0,0.52455155]
[1759156773021,0.09425511,113990.0,113980.0,0.52455155]
[1759156773527,0.10025511,113990.0,113980.0,0.52455155]
[1759156774525,0.09725511,113990.0,113980.0,0.52455155]
[1759156775219,0.4602827,113990.0,113980.0,0.52455155]
[1759156775428,0.4602827,113990.0,113980.0,0.51821155]
[1759156776026,0.11110511,113990.0,113980.0,0.51821155]
[1759156776631,0.13132399,113990.0,113980.0,1.33469155]
[1759156777436,0.48050158,113990.0,113980.0,1.33469155]
[1759156781743,0.48050158,113990.0,113980.0,1.33465155]
[1759156783647,0.48010158,113990.0,113980.0,1.33465155]
[1759156783949,0.48010158,113990.0,113980.0,1.33457155]
[1759156784249,0.48010158,113990.0,113980.0,0.4714852]
[1759156784545,0.48010158,113990.0,113980.0,1.33457155]
[1759156785135,0.13092399,113990.0,113980.0,1.33457155]
[1759156785345,0.4598827,113990.0,113980.0,1.33457155]
[1759156786439,0.4594827,113990.0,113980.0,1.33457155]
[1759156787244,0.4598827,113990.0,113980.0,1.33457155]
[1759156788547,0.4598827,113990.0,113980.0,1.33449155]
[1759156789052,0.4598827,113990.0,113980.0,0.51821155]
[1759156789247,0.4598827,113990.0,113980.0,1.33449155]
[1759156789753,0.4598827,113990.0,113980.0,0.51821155]
[1759156789953,0.4598827,113990.0,113980.0,1.33445155]
[1759156791655,0.48008897,113990.0,113980.0,1.33445155]
[1759156791948,0.48008897,113990.0,113980.0,0.51821155]
[1759156792153,0.48008897,113990.0,113980.0,1.33441155]
[1759156793157,0.13091138,113990.0,113980.0,1.33441155]
[1759156793456,0.48008897,113990.0,113980.0,1.33441155]
[1759156797551,0.48008897,113990.0,113980.0,1.33429155]
[1759156798958,0.48008897,113990.0,113980.0,0.51821155]
[1759156799159,0.48008897,113990.0,113980.0,1.33425155]
[1759156801063,0.48008897,113990.0,113980.0,0.51821155]
[1759156801262,0.48008897,113990.0,113980.0,1.33421155]
[1759156801562,0.48008897,113990.0,113980.0,0.51821155]
[1759156806362,0.48004373,113990.0,113980.0,0.51821155]
[1759156807265,0.82917608,113990.0,113980.0,1.33413155]
[1759156808053,0.82917608,113990.0,113980.0,1.33409155]
[1759156808562,0.48004373,113990.0,113980.0,1.33409155]
[1759156809567,0.13091138,113990.0,113980.0,1.33409155]
[1759156809865,0.48004373,113990.0,113980.0,1.33409155]
[1759156810268,0.13091138,113990.0,113980.0,1.33409155]
[1759156810462,0.48004373,113990.0,113980.0,1.33409155]
[1759156814073,0.48004373,113990.0,113980.0,0.51821155]
[1759156814273,0.48004373,113990.0,113980.0,1.33397155]
[1759156815476,0.13091138,113990.0,113980.0,1.33397155]
[1759156815771,0.48004373,113990.0,113980.0,1.33397155]
[1759156817175,0.48004373,113990.0,113980.0,1.33389155]
[1759156820883,0.13091138,113990.0,113980.0,1.33389155]
[1759156821081,0.48004373,113990.0,113980.0,1.33389155]
[1759156822785,0.13091138,113990.0,113980.0,1.33389155]
[1759156823078,0.48004373,113990.0,113980.0,1.33389155]
[1759156824978,0.13091138,113990.0,113980.0,1.33389155]
[1759156825282,0.11706138,113990.0,113980.0,1.34023155]
[1759156825475,0.46579373,113990.0,113980.0,1.33389155]
[1759156825677,0.46619373,113990.0,113980.0,1.6830239]
[1759156825871,0.47916373,113990.0,113980.0,1.33389155]
[1759156826072,0.13003138,113990.0,113980.0,1.33389155]
[1759156826284,0.47916373,113990.0,113980.0,1.33389155]
[1759156827185,0.11706138,113990.0,113980.0,1.34023155]
[1759156827479,0.46579373,113990.0,113980.0,1.34023155]
[1759156827677,0.46579373,113990.0,113980.0,2.41237763]
[1759156827678,0.07486511,113990.0,113980.0,2.41237763]
[1759156828079,0.07446511,113990.0,113980.0,2.41237763]
[1759156828278,0.42399746,113990.0,113980.0,1.71411293]
[1759156828473,0.42399746,113990.0,113980.0,2.10964513]
[1759156828677,0.07486511,113990.0,113980.0,2.10964513]
[1759156829081,0.07446511,113990.0,113980.0,1.29424513]
[1759156829279,0.35253235,113990.0,113980.0,2.10960513]
[1759156830183,0.35253235,113990.0,113980.0,0.94511278]
[1759156830377,0.35253235,113990.0,113980.0,2.0889574]
[1759156830576,0.0034,113990.0,113980.0,2.0889574]
[1759156830785,0.35253235,113990.0,113980.0,2.0889574]
[1759156831282,0.35253235,113990.0,113980.0,1.2736374]
[1759156831785,0.35253235,113990.0,113980.0,2.0889574]
[1759156832184,0.35253235,113990.0,113980.0,2.0889174]
[1759156832378,0.0034,113990.0,113980.0,2.0889174]
[1759156832573,0.35253235,113990.0,113980.0,2.0889174]
[1759156833980,0.0034,113990.0,113980.0,2.0889174]
[1759156834485,0.37417235,113990.0,113980.0,1.73974505]
[1759156834683,0.35253235,113990.0,113980.0,2.0888774]
[1759156834985,0.35253235,113990.0,113980.0,2.04219755]
[1759156838086,0.0034,113990.0,113980.0,2.04219755]
[1759156838285,0.35253235,113990.0,113980.0,2.04219755]
[1759156838684,0.35253235,113990.0,113980.0,1.6930652]
[1759156838885,0.35253235,113990.0,113980.0,2.04219755]
[1759156839480,0.35253235,113990.0,113980.0,1.64219755]
[1759156839882,0.35253235,113990.0,113980.0,1.2930652]
[1759156840084,0.35253235,113990.0,113980.0,1.64219755]
[1759156841191,0.37417235,113990.0,113980.0,0.4778252]
[1759156841381,0.37417235,113990.0,113980.0,0.4714852]
[1759156841680,0.38714235,113990.0,113980.0,1.63601755]
[1759156842089,0.38714235,113990.0,113980.0,0.4714852]
[1759156842388,0.38714235,113990.0,113980.0,1.33468879]
[1759156843188,0.03801,113990.0,113980.0,1.33468879]
[1759156843390,0.38714235,113990.0,113980.0,1.33468879]
[1759156843890,0.38714235,113990.0,113980.0,0.51812879]
[1759156844078,0.38714235,113990.0,113980.0,1.33448879]
[1759156844391,0.03801,113990.0,113980.0,1.33448879]
[1759156844584,0.03801,113990.0,113980.0,0.86726114]
[1759156844784,0.38714235,113990.0,113980.0,1.68350114]
[1759156844983,0.38714235,113990.0,113980.0,1.33436879]
[1759156845189,0.38714235,113990.0,113980.0,0.51812879]
[1759156845391,0.38714235,113990.0,113980.0,1.68354114]
[1759156846287,0.38714235,113990.0,113980.0,1.33440879]
[1759156846487,0.38714235,113990.0,113980.0,1.68354114]
[1759156846886,0.38714235,113990.0,113980.0,1.33440879]
[1759156847289,0.38714235,113990.0,113980.0,0.51812879]
[1759156847489,0.38714235,113990.0,113980.0,1.33416879]
[1759156847690,0.7362747,113990.0,113980.0,0.51812879]
[1759156847892,0.7363147,113990.0,113980.0,1.33412879]
[1759156848092,0.38718235,113990.0,113980.0,1.33404879]
[1759156851298,0.38718235,113990.0,113980.0,0.51812879]
[1759156851487,0.38718235,113990.0,113980.0,1.33340879]
[1759156851690,0.47485975,113990.0,113980.0,1.33336879]
[1759156851891,0.38718235,113990.0,113980.0,1.33336879]
[1759156852600,0.38718235,113990.0,113980.0,1.33332879]
[1759156852995,0.03805,113990.0,113980.0,1.33332879]
[1759156853194,0.38718235,113990.0,113980.0,1.33332879]
[1759156854401,0.03805,113990.0,113980.0,1.33332879]
[1759156854600,0.38718235,113990.0,113980.0,1.33332879]
[1759156858996,0.03805,113990.0,113980.0,1.33332879]
[1759156859201,0.38718235,113990.0,113980.0,1.33332879]
[1759156860507,0.03805,113990.0,113980.0,1.33332879]
[1759156860709,0.38718235,113990.0,113980.0,1.33332879]
[1759156865409,0.03805,113990.0,113980.0,1.33332879]
[1759156865716,0.38718235,113990.0,113980.0,1.33332879]
[1759156866311,0.03805,113990.0,113980.0,1.33332879]
[1759156866511,0.37421235,113990.0,113980.0,1.68880114]
[1759156866711,0.37381235,113990.0,113980.0,1.33966879]
[1759156866916,0.37421235,113990.0,113980.0,1.68880114]
[1759156867310,0.37421235,113990.0,113980.0,1.33966879]
[1759156868015,0.35257235,113990.0,113980.0,1.68880114]
[1759156868222,0.00344,113990.0,113980.0,1.64204162]
[1759156868514,0.00304,113990.0,113980.0,1.64204162]
[1759156868724,0.00304,113990.0,113980.0,1.2929852]
[1759156869018,0.00344,113990.0,113980.0,1.2929852]
[1759156869316,0.37568642,113990.0,113980.0,1.2929852]
[1759156869510,0.35245642,113990.0,113980.0,1.2929852]
[1759156869706,0.35245642,113990.0,113980.0,0.4778252]
[1759156869911,0.00344,113990.0,113980.0,1.2929852]
[1759156871017,0.00344,113990.0,113980.0,1.64200162]
[1759156871018,0.00304,113990.0,113980.0,1.64200162]
[1759156871210,0.00344,113990.0,113980.0,1.64200162]
[1759156875011,0.00304,113990.0,113980.0,1.64200162]
[1759156875217,0.00344,113990.0,113980.0,1.64200162]
[1759156877526,0.00344,113990.0,113980.0,0.82684162]
[1759156878022,0.00344,113990.0,113980.0,1.64192162]
[1759156878923,0.06666667,114010.0,114000.0,0.1146196]
[1759156879122,0.06666667,114010.0,114000.0,1.44836084]
[1759156879325,0.01288877,114010.0,114000.0,2.19737726]
[1759156879523,4e-05,114020.0,114010.0,0.1183719]
[1759156879829,4e-05,114020.0,114010.0,0.87482544]
[1759156880022,4e-05,114020.0,114010.0,1.68990544]
[1759156880223,0.15293351,114040.0,114020.0,0.087653]
[1759156880529,0.08273234,114040.0,114030.0,1.97964302]
[1759156880717,0.08313234,114040.0,114030.0,1.19395894]
[1759156881029,0.08273234,114040.0,114030.0,2.40903894]
[1759156881228,0.01351,114050.0,114040.0,0.0876389]
[1759156881528,0.01271,114050.0,114040.0,1.61277532]
[1759156881731,0.01311,114050.0,114040.0,1.61277532]
[1759156882119,0.01271,114050.0,114040.0,1.61265532]
[1759156882330,0.01311,114050.0,114040.0,0.4484389]
[1759156882631,0.01311,114050.0,114040.0,0.79745532]
[1759156883130,0.01311,114050.0,114040.0,2.01265532]
[1759156883324,0.01311,114050.0,114040.0,1.19745532]
[1759156883522,0.02084384,114060.0,114050.0,0.0876312]
[1759156883825,0.02164384,114060.0,114050.0,1.61248762]
[1759156884025,0.02084384,114060.0,114050.0,2.01248762]
[1759156884225,0.02084384,114060.0,114050.0,2.03268336]
[1759156884226,0.02124384,114060.0,114050.0,2.03268336]
[1759156884832,0.02124384,114060.0,114050.0,1.68362694]
[1759156885125,0.02124384,114060.0,114050.0,1.21764336]
[1759156885325,0.02124384,114060.0,114050.0,2.03264336]
[1759156885527,0.01253384,114060.0,114050.0,2.03256336]
[1759156885830,0.0048,114090.0,114080.0,0.0876081]
[1759156886132,0.01285,114100.0,114090.0,0.0876005]
[1759156886327,0.01285,114100.0,114090.0,0.79741692]
[1759156886534,0.15914115,114110.0,114100.0,0.0875928]
[1759156886827,0.11096452,114110.0,114100.0,1.63299136]
[1759156887130,0.03206667,114110.0,114100.0,1.63299136]
[1759156887435,0.04433785,114120.0,114110.0,0.0875851]
[1759156887625,0.01275,114120.0,114110.0,0.79740152]
[1759156887822,0.04433785,114120.0,114110.0,0.79740152]
[1759156888026,0.04433785,114120.0,114110.0,1.61216152]
[1759156888229,0.00594802,114130.0,114110.0,1.81656214]
[1759156888434,0.07880213,114160.0,114110.0,1.81656214]
[1759156888435,0.01275,114160.0,114150.0,0.0875544]
[1759156888734,0.01271,114170.0,114160.0,0.0875467]
[1759156889124,0.01271,114170.0,114160.0,2.0238267]
[1759156889125,0.0004,114170.0,114160.0,2.0238267]
[1759156889326,0.01271,114190.0,114180.0,0.0875314]
[1759156889327,0.07876213,114190.0,114180.0,0.0875314]
[1759156889531,0.01275,114200.0,114190.0,0.10830365]
[1759156889725,0.01275,114200.0,114190.0,0.8318095]
[1759156889925,0.01275,114200.0,114190.0,1.29202075]
[1759156890122,0.01275,114200.0,114190.0,0.47570075]
[1759156890331,0.03487,114200.0,114190.0,1.31329052]
[1759156890529,0.03487,114200.0,114190.0,0.49617052]
[1759156890530,0.01275,114200.0,114190.0,0.49617052]
[1759156890740,0.86667777,114200.0,114190.0,0.47570075]
[1759156891028,0.86667777,114200.0,114180.0,0.448326]
[1759156891029,0.01271,114190.0,114180.0,0.448326]
[1759156891232,0.01271,114190.0,114180.0,1.65538672]
[1759156891629,0.01271,114190.0,114180.0,0.83650672]
[1759156891830,0.01271,114190.0,114180.0,1.65534672]
[1759156892029,0.01071,114190.0,114180.0,1.65526672]
[1759156892335,0.86463777,114190.0,114180.0,0.83650672]
[1759156892636,0.43283,114190.0,114180.0,0.83650672]
[1759156892827,0.01071,114190.0,114180.0,0.84150672]
[1759156893026,0.01111,114190.0,114180.0,0.84150672]
[1759156893232,0.86203777,114190.0,114180.0,1.66114672]
[1759156893431,0.86203777,114190.0,114180.0,0.84150672]
[1759156893744,0.8500043,114190.0,114180.0,0.88606307]
[1759156894236,0.01355,114200.0,114190.0,0.0875238]
[1759156894438,0.01355,114200.0,114190.0,1.34163401]
[1759156894627,0.01275,114200.0,114190.0,1.31872172]
[1759156894829,0.01315,114200.0,114190.0,0.49716172]
[1759156895034,0.86707777,114200.0,114190.0,0.49716172]
[1759156895338,0.86707777,114200.0,114190.0,0.47570452]
[1759156895728,0.86707777,114200.0,114190.0,0.02738072]
[1759156896125,1.22787777,114200.0,114190.0,0.02738072]
[1759156896334,1.31539397,114200.0,114190.0,0.02738072]
[1759156896641,0.03483,114180.0,114170.0,0.9734983]
[1759156896841,0.03483,114180.0,114170.0,0.99482421]
[1759156897133,0.03483,114180.0,114170.0,0.91532421]
[1759156897337,0.01271,114180.0,114170.0,0.8939983]
[1759156897744,0.01311,114180.0,114170.0,1.31645876]
[1759156897932,0.01271,114180.0,114170.0,1.31645876]
[1759156898435,0.01311,114180.0,114170.0,1.33937105]
[1759156898836,0.0004,114180.0,114170.0,1.33937105]
[1759156899041,0.01271,114190.0,114180.0,0.0875315]
[1759156899337,0.01271,114190.0,114180.0,0.47079196]
[1759156899535,0.01275,114200.0,114190.0,0.0875238]
[1759156899739,0.01275,114200.0,114190.0,1.2697638]
[1759156900235,0.01271,114230.0,114220.0,0.0875008]
[1759156900434,0.01431,114230.0,114220.0,1.18524]
[1759156900629,0.01271,114230.0,114220.0,1.18524]
[1759156900839,0.43483,114230.0,114220.0,1.18512]
[1759156901138,0.4004,114230.0,114220.0,1.18512]
[1759156901340,0.01311,114230.0,114220.0,1.21992]
[1759156901529,0.03483,114230.0,114220.0,0.4833007]
[1759156901730,0.03483,114230.0,114220.0,1.3074207]
[1759156901938,0.03523,114230.0,114220.0,0.3608]
[1759156902140,0.03483,114220.0,114210.0,0.38140958]
[1759156902341,0.03483,114210.0,114200.0,0.3815451]
[1759156902535,0.03483,114210.0,114200.0,0.3608]
[1759156902731,0.03483,114210.0,114200.0,0.82456]
[1759156903139,0.03483,114200.0,114190.0,0.3608]
[1759156903334,1.02466144,114200.0,114190.0,0.3608]
[1759156903744,0.03483,114200.0,114190.0,0.3608]
[1759156904241,0.03483,114200.0,114180.0,1.273651]
[1759156904242,0.03483,114190.0,114180.0,1.273651]
[1759156904543,0.01271,114190.0,114180.0,1.308651]
[1759156904744,0.01311,114190.0,114180.0,1.308651]
[1759156905646,0.01211,114190.0,114180.0,1.308651]
[1759156906235,0.01411,114190.0,114180.0,2.16284491]
[1759156906443,0.01371,114190.0,114180.0,0.50571714]
[1759156906643,0.01371,114190.0,114180.0,1.309731]
[1759156906644,0.03583,114190.0,114180.0,1.309731]
[1759156906946,0.01371,114190.0,114180.0,1.309731]
[1759156907148,0.01411,114190.0,114180.0,1.309731]
[1759156907642,0.01411,114190.0,114180.0,1.33213887]
[1759156908045,0.01171,114190.0,114180.0,2.16394415]
[1759156908240,0.01171,114190.0,114180.0,2.16794415]
[1759156908438,0.0036,114230.0,114190.0,0.0875237]
[1759156908638,0.03542,114230.0,114220.0,0.3608]
[1759156908948,0.55512087,114230.0,114220.0,0.01333366]
[1759156909141,0.90152087,114230.0,114220.0,0.01333366]
[1759156909442,0.81402777,114230.0,114220.0,0.01333366]
[1759156909640,0.45462777,114230.0,114220.0,0.46163436]
[1759156909838,0.46262777,114230.0,114220.0,0.37413366]
[1759156910042,0.03042,114230.0,114220.0,0.46163436]
[1759156910240,0.03082,114230.0,114220.0,0.46163436]
[1759156910441,0.03042,114230.0,114220.0,0.37413366]
[1759156910741,0.55012087,114230.0,114220.0,0.01333366]
[1759156910942,1.22342777,114230.0,114220.0,0.01333366]
[1759156911248,0.8791531,114230.0,114220.0,0.01333366]
[1759156911444,0.8701531,114230.0,114220.0,0.01333366]
[1759156911646,1.22746777,114230.0,114220.0,0.10083436]
[1759156911840,0.39566,114230.0,114220.0,0.10083436]
[1759156912048,0.03486,114230.0,114220.0,0.47041436]
[1759156912241,0.03486,114230.0,114220.0,0.10961436]
[1759156912442,0.03446,114230.0,114220.0,0.10961436]
[1759156912643,0.02986,114230.0,114220.0,0.47041436]
[1759156912843,0.02946,114230.0,114220.0,0.47041436]
[1759156913039,0.02846,114230.0,114220.0,0.47041436]
[1759156913341,0.03386,114230.0,114220.0,0.47041436]
[1759156913850,0.03386,114230.0,114220.0,0.10961436]
[1759156914145,0.1143531,114230.0,114220.0,0.10961436]
[1759156914349,1.30696087,114230.0,114220.0,0.01333366]
[1759156914548,0.1229284,114210.0,114200.0,0.3608]
[1759156914749,0.55473617,114210.0,114200.0,0.38332986]
[1759156914951,0.55473617,114210.0,114200.0,0.3608]
[1759156915142,0.01393,114210.0,114200.0,0.457096]
[1759156915345,0.01393,114210.0,114200.0,0.47962551]
[1759156915641,0.86762777,114210.0,114200.0,0.47962551]
[1759156915845,0.03582,114210.0,114200.0,0.48362551]
[1759156916253,0.01433,114210.0,114200.0,0.48362551]
[1759156916453,0.01393,114210.0,114200.0,0.48362551]
[1759156916650,0.95513617,114210.0,114200.0,0.02652951]
[1759156916853,1.31593617,114210.0,114200.0,0.02452951]
[1759156917147,0.01393,114180.0,114170.0,1.07304051]
[1759156917340,0.1229515,114180.0,114170.0,0.44676684]
[1759156917546,0.1229515,114180.0,114170.0,0.03932972]
[1759156917747,1.31555927,114180.0,114170.0,0.02300919]
[1759156918361,1.31559927,114180.0,114170.0,0.02300919]
[1759156918654,1.38491487,114180.0,114170.0,0.03200919]
[1759156918849,0.1229591,114170.0,114160.0,0.02930133]
[1759156919049,2.14076687,114170.0,114160.0,0.02930133]
[1759156919249,2.14076687,114170.0,114160.0,1.33e-06]
[1759156919541,2.13676687,114170.0,114160.0,1.33e-06]
[1759156919948,2.13376687,114170.0,114160.0,1.33e-06]
[1759156920153,0.1229668,114160.0,114150.0,0.04694712]
[1759156920352,0.0875545,114150.0,114140.0,0.03673122]
[1759156920557,0.1229821,114140.0,114130.0,0.06276507]
[1759156920749,0.91558987,114140.0,114130.0,0.06276507]
[1759156920950,1.37994987,114140.0,114130.0,0.38396472]
[1759156921143,1.31558987,114140.0,114130.0,0.09460507]
[1759156921349,1.31558987,114140.0,114130.0,0.08582507]
[1759156921549,1.31598987,114140.0,114130.0,0.00010472]
[1759156921749,0.95518987,114140.0,114130.0,0.00010472]
[1759156922157,1.78026987,114140.0,114130.0,0.00010472]
[1759156922457,2.14122987,114140.0,114130.0,0.02316472]
[1759156922649,1.31598987,114140.0,114130.0,0.02316472]
[1759156922850,1.78074987,114140.0,114130.0,0.02316472]
[1759156923155,1.79174987,114140.0,114130.0,0.00010472]
[1759156923355,2.15254987,114140.0,114130.0,0.06476507]
[1759156923557,2.18454987,114140.0,114130.0,0.06476507]
[1759156923857,1.0280896,114140.0,114130.0,0.03394472]
[1759156924155,1.8536896,114140.0,114130.0,0.03394472]
[1759156924544,0.87146777,114140.0,114130.0,0.12151452]
[1759156924750,0.05737,114140.0,114130.0,0.5605194]
[1759156924952,0.01393,114150.0,114140.0,0.0875621]
[1759156925254,0.55478227,114150.0,114140.0,0.10908385]
[1759156925456,0.91558227,114150.0,114140.0,0.03184]
[1759156925650,0.91558227,114150.0,114140.0,0.07057476]
[1759156925853,0.91558227,114150.0,114140.0,0.00878]
[1759156926156,0.91558227,114150.0,114140.0,0.07057476]
[1759156926351,0.94858227,114150.0,114140.0,0.18219686]
[1759156926553,1.77422227,114150.0,114140.0,0.18219686]
[1759156926752,0.89446,114150.0,114140.0,0.4812021]
[1759156926948,0.9816145,114150.0,114140.0,0.1204021]
[1759156927247,0.50062777,114150.0,114140.0,0.39364]
[1759156927453,0.58818227,114150.0,114140.0,0.09460538]
[1759156927650,1.41358227,114150.0,114140.0,0.45540538]
[1759156927850,0.9817745,114150.0,114140.0,0.45540538]
[1759156928355,0.70042637,114150.0,114140.0,0.45540538]
[1759156928556,0.04733,114150.0,114140.0,0.54296748]
[1759156928761,0.0334,114150.0,114140.0,1.42525397]
[1759156929056,0.033,114150.0,114140.0,1.50249782]
[1759156929252,0.0334,114150.0,114140.0,0.95844595]
[1759156929556,0.06882,114150.0,114140.0,0.55844595]
[1759156929752,0.70042637,114150.0,114140.0,0.55844595]
[1759156929952,0.70042637,114150.0,114140.0,0.4812021]
[1759156930253,0.1563745,114150.0,114140.0,0.4812021]
[1759156930754,0.70042637,114150.0,114140.0,0.39364]
[1759156930956,0.70042637,114150.0,114140.0,0.44782385]
[1759156931453,1.92534637,114150.0,114140.0,0.42357307]
[1759156931857,2.83019824,114150.0,114140.0,0.06277307]
[1759156932056,2.83019824,114150.0,114140.0,0.001]
[1759156932254,0.1229821,114140.0,114130.0,0.06063333]
[1759156932459,1.42783397,114140.0,114130.0,0.06063333]
[1759156932660,1.42783397,114140.0,114130.0,0.02563333]
[1759156933059,0.1229975,114120.0,114110.0,0.54868875]
[1759156933261,0.66713506,114120.0,114110.0,0.55746875]
[1759156933456,0.66713506,114120.0,114110.0,0.4802249]
[1759156933663,0.66013506,114120.0,114110.0,0.4802249]
[1759156933960,0.11608319,114120.0,114110.0,0.39264]
[1759156934161,0.66013506,114120.0,114110.0,0.00878]
[1759156934362,0.66013506,114120.0,114110.0,0.02178]
[1759156934663,1.42093506,114120.0,114110.0,0.02178]
[1759156934859,1.41393506,114120.0,114110.0,0.09024385]
[1759156935157,1.41393506,114120.0,114110.0,0.013]
[1759156935358,0.1008352,114110.0,114100.0,0.07724385]
[1759156935560,0.1235928,114100.0,114090.0,0.54720435]